Cogmind - Beta 15 @@@ ROGUE MODE // 2025.08.04 @ 16:01:05 Player: FenRhew Result: Destroyed by Striker with Plasma Lance Performance ------------- Evolutions (5) 2500 Regions Visited (12) 2400 Robots Destroyed (234) 1170 Value Destroyed (8275) 8275 Prototype IDs (19) 380 Alien Tech Used (0) 0 Bonus (1476) 1476 TOTAL SCORE: 16201 Bonus ------- High Alert Combat Kills 291 Met Warlord at Base 500 MAIN.C Attacked Warlord 500 Warlord Defense Kills 230 Friendly Fire -45 Cogmind --------- Core Integrity 0/1000 Matter 300/300 Energy 99/100 System Corruption 10% Temperature Cool (0) Movement Core (50) Location -5/Warlord Parts ------- > --- POWER (2) -------- (None) > --- PROPULSION (5) --- Armored Medium Treads > --- UTILITY (7) ------ 0b10 Decoder Chip [Scout] Advanced Targeting Computer Improved Target Analyzer > --- WEAPON (3) ------- (None) > --- INVENTORY (5) ---- Makeshift Transmission Jammer Wave Gun Wave Gun Wave Gun Enhanced Force Lance Peak State ------------ > --- POWER ------------ Heavy Deuterium Engine Antimatter Reactor > --- PROPULSION ------- Heavy Treads Heavy Treads Centrium Wheel > --- UTILITY ---------- Large Storage Unit Seismic Detector Advanced Targeting Computer Target Analyzer Improved Heavy Armor Plating Advanced Hacking Suite > --- WEAPON ----------- Mini Assault Cannon Mini Assault Cannon Enhanced Gauss Cannon > --- INVENTORY -------- Reinforced Quantum Reactor Heavy Treads Armored Huge Wheel Improved Heat Sink High-capacity Matter Pod Structural Scanner Advanced Kinecellerator Improved Shield Generator Precision Shock Rifle Precision Shock Rifle Enhanced Hardcell Cannon Heavy Rocket Launcher Enhanced Force Lance [Rating: 90] Favorites ----------- Power Heavy Deuterium Engine Engine Heavy Deuterium Engine Power Core Micro Nuclear Core Reactor Antimatter Reactor Propulsion Improved Titanium Leg Treads Heavy Treads Leg Improved Titanium Leg Wheel Armored Huge Wheel Utility Large Storage Unit Device Seismic Detector Storage Large Storage Unit Processor Advanced Targeting Computer Hackware Hacking Suite Protection Improved Medium Armor Plating Weapon Mini Assault Cannon Energy Gun Improved Medium Laser Energy Cannon Advanced Beam Cannon Ballistic Gun KE Penetrator Ballistic Cannon Mini Assault Cannon Launcher Heavy Shock Bomb Launcher Impact Weapon Impact Mace Slashing Weapon Great Axe Piercing Weapon Enhanced Force Lance Build | -11 -10 -9 -8 -7 -7 -7 -5 -5 -5 -5 -5 -5 ------- Run | Yrd Mat Mat Mat Fac Sto Rec Fac Was Fac Upp Upp War Slots Evolved 10 | . . 2 2 2 . . 4 . . . . . Power 1 | . . . . . . . 1 . . . . . Propulsion 3 | . . . 2 1 . . . . . . . . Utility 5 | . . 2 . 1 . . 2 . . . . . Weapon 1 | . . . . . . . 1 . . . . . Parts Attached 152 | 7 2 16 24 23 22 1 7 7 21 6 6 10 Power 18 | 1 . 2 4 1 1 . 1 2 3 1 1 1 Engine 8 | 1 . 1 2 . 1 . 1 1 . . 1 . Core 7 | . . 1 2 1 . . . . 2 1 . . Reactor 3 | . . . . . . . . 1 1 . . 1 Propulsion 39 | 2 . 3 6 10 3 . 1 3 5 2 2 2 Treads 7 | 2 . . . . . . . 2 1 1 . 1 Leg 25 | . . 3 5 10 3 . . . 1 1 1 1 Wheel 7 | . . . 1 . . . 1 1 3 . 1 . Hover . | . . . . . . . . . . . . . Flight . | . . . . . . . . . . . . . Utility 54 | 2 1 5 8 10 5 1 3 2 9 2 2 4 Device 24 | 1 . 4 4 4 . 1 1 2 4 1 2 . Storage 5 | 1 1 . . 1 1 . . . . 1 . . Processor 8 | . . 1 2 1 1 . . . 1 . . 2 Hackware 3 | . . . . 2 . . . . 1 . . . Protection 14 | . . . 2 2 3 . 2 . 3 . . 2 Artifact . | . . . . . . . . . . . . . Weapon 41 | 2 1 6 6 2 13 . 2 . 4 1 1 3 Energy Gun 13 | 2 . 3 . 2 6 . . . . . . . Energy Cannon 3 | . . 1 1 . . . . . . . . 1 Ballistic Gun 6 | . . . 1 . 2 . . . . . 1 2 Ballistic Cannon 10 | . 1 . 2 . 3 . 2 . 1 1 . . Launcher 6 | . . 2 2 . . . . . 2 . . . Special Weapon . | . . . . . . . . . . . . . Impact Weapon 1 | . . . . . 1 . . . . . . . Slashing Weapon 1 | . . . . . 1 . . . . . . . Piercing Weapon 1 | . . . . . . . . . 1 . . . Special Melee Weapon . | . . . . . . . . . . . . . Unidentified Prototypes 17 | . . 4 2 2 7 . . 1 . . . 1 Corrupted Parts 2 | . . . . . . . . . . . 1 1 System Corruption 13 | . . . . . . . . . . . 3 10 Parts Lost 57 | . . 2 9 1 7 4 . . 6 3 12 13 Power 5 | . . . 1 . . . . . . . 2 2 Propulsion 25 | . . . 5 1 3 3 . . 5 1 3 4 Utility 17 | . . 2 1 . 3 1 . . 1 1 5 3 Weapon 10 | . . . 2 . 1 . . . . 1 2 4 Highest Loss Streak 12 | . . 1 3 1 3 4 . . 2 2 5 12 To Critical Strikes . | . . . . . . . . . . . . . Average Backups 12 | 4 8 14 14 14 14 13 11 13 13 13 7 9 Power 1 | . 1 1 1 1 1 2 1 1 1 1 2 1 Propulsion 1 | 3 3 2 . 1 1 1 . 1 1 . . . Utility 4 | . 2 3 6 5 4 4 4 5 3 3 1 2 Weapon 5 | . 1 6 6 6 6 6 6 5 6 6 3 4 Tool/Special . | . . . . . . . . . . . . . Unused Backups 41 | . 2 9 4 3 4 . 1 4 2 4 . 8 Power 6 | . . 3 1 . 1 . . 1 . . . . Propulsion 6 | . 1 3 . . . . . . 1 1 . . Utility 9 | . 1 . 1 1 1 . . 1 . . . 4 Weapon 18 | . . 2 2 2 2 . 1 2 1 2 . 4 Tool/Special 2 | . . 1 . . . . . . . 1 . . Average Slot Usage (%) 89 | . 100 98 95 96 98 84 85 81 82 85 74 83 Engine 4 | . 14 6 2 . 1 7 11 9 3 . 2 7 Core 3 | . . 4 6 7 5 . . . 1 6 3 . Reactor 1 | . . . . . . . . 1 5 3 . 1 Treads 3 | . 28 3 . . . . . 8 10 . 1 . Leg 16 | . . 18 30 33 37 22 11 6 1 2 1 6 Wheel 2 | . . . 1 . . . 4 1 1 11 5 10 Device 11 | . 14 21 12 9 6 4 10 11 13 17 15 5 Storage 7 | . 14 11 9 7 6 7 5 5 5 4 8 10 Processor 11 | . . 11 9 11 15 15 11 11 9 11 11 17 Protection 4 | . . . 5 5 7 9 9 5 5 4 1 3 Energy Gun 4 | . 16 20 3 . 4 . . . . . . . Ballistic Gun 3 | . . . . . 3 15 2 . . . 3 14 Ballistic Cannon 8 | . 11 . 5 14 6 . 13 17 15 15 13 . Peak Build Rating 90 | 7 8 22 32 49 54 54 68 89 90 87 72 80 Average Rating 49 | 5 7 19 27 38 50 46 64 80 82 72 59 67 On Entrance 45 | . 7 8 22 28 48 54 43 68 89 84 71 64 Naked Turns . | . . . . . . . . . . . . . Heaviest Build 86 | 14 31 37 43 53 57 50 77 84 86 80 63 59 Greatest Support 140 | 40 40 40 54 98 98 96 28 140 140 38 44 44 Greatest Overweight (x) 7 | . . 1 3 3 . 1 2 3 7 2 2 2 Average Overweight (x) . | . . . . . . . 2 . . 1 . . Largest Inventory Capacity 15 | 8 15 15 15 15 15 15 15 15 15 15 10 10 Average Capacity 13 | 7 12 15 15 15 14 15 15 15 15 13 10 9 Most Carried 15 | 6 14 15 15 15 15 15 15 15 15 15 10 10 Average Carried 13 | 4 8 14 14 14 14 14 11 14 14 12 7 9 Final Capacity 15 | 8 15 15 15 15 15 15 15 15 15 10 10 5 Final Carried 15 | 6 14 15 15 15 15 15 15 15 15 10 8 5 Class Distribution -------------------- 39% | Mutant 13% | Scavenger-Gunner 10% | Machinist-Mutant 10% | Scavenger-Mutant 10% | Tank 9% | Scavenger-Tank 5% | Gunner Dominant Class ---------------- Mutant | -10/Materials Mutant | -9/Materials Mutant | -8/Materials Scavenger-Mutant | -7/Factory Machinist-Mutant | -7/Storage Mutant | -7/Recycling Tank | -5/Factory Tank | -5/Waste Scavenger-Tank | -5/Factory Scavenger-Gunner | -5/Upper Caves Scavenger-Gunner | -5/Upper Caves Scavenger-Gunner | -5/Warlord Resources | -11 -10 -9 -8 -7 -7 -7 -5 -5 -5 -5 -5 -5 ----------- Run | Yrd Mat Mat Mat Fac Sto Rec Fac Was Fac Upp Upp War Matter Collected 7489 | 263 298 242 587 554 1509 189 101 425 2162 384 654 121 Remotely . | . . . . . . . . . . . . . Salvage Created 9131 | 29 373 1482 1502 614 1236 509 70 157 2092 523 462 82 Parts 411 | 2 25 69 58 37 61 21 9 . 84 25 14 6 Haulers Intercepted 11 | . 1 5 2 1 2 . . . . . . . Recyclers Shooed 8 | . . . 3 . 1 . . . 4 . . . Parts Field Recycled . | . . . . . . . . . . . . . Retrieved Matter . | . . . . . . . . . . . . . Parts Self-Destructed 17 | . . . . . . . . . . 9 8 . Prevented 20 | . . . . . . . . . . 13 7 . Kills | -11 -10 -9 -8 -7 -7 -7 -5 -5 -5 -5 -5 -5 ------- Run | Yrd Mat Mat Mat Fac Sto Rec Fac Was Fac Upp Upp War Combat Hostiles Destroyed 173 | . 7 25 30 16 23 4 5 . 38 13 9 3 Guns 40 | . 2 19 3 . 10 4 . . 1 . . 1 Cannons 90 | . 5 . 21 16 12 . 5 . 21 2 6 2 AOE 37 | . . 6 4 . . . . . 16 10 1 . Classes Destroyed 15 | 1 6 3 1 2 . . . . 2 . . . Worker 12 | . 2 4 1 . 2 . . . 3 . . . Builder 5 | . . 1 . . 1 . . . 3 . . . Tunneler 1 | 1 . . . . . . . . . . . . Hauler 11 | . 1 5 2 1 2 . . . . . . . Recycler 18 | . 1 2 3 . 2 3 . . 7 . . . Operator 6 | . . . 2 2 1 . . . 1 . . . Watcher 8 | . 1 3 . 1 1 . . . 2 . . . Swarmer 44 | . 3 5 6 3 3 . 5 . 11 8 . . Saboteur 2 | . . . . . . . . . 1 . . 1 Grunt 76 | . 4 14 19 10 9 . . . 8 4 7 1 Brawler 2 | . . . . . . . . . 1 . 1 . Duelist 3 | . . 1 . . . . . . . . 1 1 Sentry 25 | . . 5 5 1 8 4 . . 1 1 . . Hunter 5 | . . . . 1 1 . . . 3 . . . Programmer 16 | . . . . 1 2 . . . 13 . . . Best Kill Streak 9 | 1 3 6 7 4 5 2 5 . 9 4 3 1 Combat Bots Only 6 | . 3 5 5 3 5 2 5 . 6 4 3 1 Max Kills in Single Turn 4 | 1 2 3 2 2 2 1 1 . 4 4 1 1 Gunslinging 1 | . . 1 . . . . . . . . . . Exploded 4 | . . 3 2 . . . . . 3 4 1 . Melee . | . . . . . . . . . . . . . Uniques/NPCs Destroyed . | . . . . . . . . . . . . . Combat | -11 -10 -9 -8 -7 -7 -7 -5 -5 -5 -5 -5 -5 -------- Run | Yrd Mat Mat Mat Fac Sto Rec Fac Was Fac Upp Upp War Hostile Shots Fired 1372 | . 25 106 174 68 326 144 23 . 215 39 114 138 Missed 440 | . 4 36 53 22 119 48 8 . 43 18 37 52 Hits 932 | . 21 70 121 46 207 96 15 . 172 21 77 86 Melee 24 | . . 4 . . . . . . . . . 20 Projectile 908 | . 21 66 121 46 207 96 15 . 172 21 77 66 AOE 1 | . . . . . . . . . 1 . . . Critical Strikes 32 | . . . 7 2 4 . . . 4 . 10 5 Actively Blocked 2 | . . . 2 . . . . . . . . . Part Disruptions 1 | . . . . . . . . . . 1 . . Damage Taken 13525 | . 193 923 1822 673 2108 674 161 . 2984 306 1457 2224 Core 1857 | . . 241 330 72 144 44 21 . 267 30 371 337 Absorbed by Shields 891 | . . 65 . . . 89 59 . 517 117 44 . Reduced by Siege Mode 90 | . . . . . . . . . 90 . . . Redirected to Shielding 30 | . . . 30 . . . . . . . . . Regen/Repaired (Parts) 848 | . . 362 . . 384 . . . . . . 102 Core Remaining (%) 68 | 100 100 39 40 . . 62 . . . . . . Volleys Fired 550 | 2 17 84 111 46 90 19 9 8 96 20 32 16 Largest 3 | 2 2 2 2 2 2 2 3 3 3 3 3 3 Hottest 136 | 90 80 112 136 80 110 56 127 127 135 131 131 99 Shots Fired 1145 | 4 34 167 221 87 177 38 27 20 237 33 74 26 Gun 367 | 4 17 159 48 . 71 38 . . 5 . 11 14 Cannon 745 | . 17 5 170 87 106 . 27 20 221 24 56 12 Launcher 33 | . . 3 3 . . . . . 11 9 7 . Special . | . . . . . . . . . . . . . Kinetic 717 | . 17 5 56 87 141 38 27 20 221 24 67 14 Thermal 329 | 4 17 146 162 . . . . . . . . . Explosive 9 | . . 3 3 . . . . . 3 . . . Electromagnetic 78 | . . 13 . . 36 . . . 13 9 7 . Entropic 12 | . . . . . . . . . . . . 12 Robot Hit Streak 21 | . 7 15 15 6 21 21 4 8 17 13 10 4 Robot Miss Streak 5 | 2 4 5 3 4 5 1 4 1 4 5 3 3 Penetration Max 1 | . . . . . . . . . . . . 1 Secondary Targets 2 | . . 2 . . . . . . . . . . Max Gunslinging Chain 1 | . . 1 . . . . . . . . . . Shots Hit Robots 703 | . 20 111 148 44 116 35 10 9 147 14 36 13 Core Hits 362 | 1 15 52 58 27 47 13 5 1 98 20 19 6 Critical Kills 6 | . . . 1 . 2 2 . . . . 1 . Critical Parts Destroyed 7 | . . . . . 2 2 . . . 1 2 . Critical Strikes 76 | . 1 14 6 4 15 4 . 1 20 4 5 2 Burn 15 | . . 13 2 . . . . . . . . . Meltdown 1 | . . . 1 . . . . . . . . . Destroy 13 | . . . . . 4 4 . . . 2 3 . Blast 42 | . 1 1 3 4 9 . . 1 19 2 2 . Corrupt 3 | . . . . . 2 . . . 1 . . . Sunder 2 | . . . . . . . . . . . . 2 Melee Attacks 3 | . . . . . 2 . . . 1 . . . Impact . | . . . . . . . . . . . . . Slashing 2 | . . . . . 2 . . . . . . . Piercing 1 | . . . . . . . . . 1 . . . Sneak Attacks . | . . . . . . . . . . . . . Combat Hostiles . | . . . . . . . . . . . . . Follow-up Attacks . | . . . . . . . . . . . . . Damage Inflicted 21268 | 24 317 2262 3526 1201 3043 706 277 275 6326 994 1587 730 Guns 4502 | 24 124 1821 552 . 988 706 . . 39 . 88 160 Cannons 12747 | . 193 68 2670 1201 1953 . 277 275 4499 219 822 570 Explosions 4019 | . . 373 304 . 102 . . . 1788 775 677 . Melee . | . . . . . . . . . . . . . Ramming . | . . . . . . . . . . . . . Kinetic 12042 | . 193 68 1081 1201 2453 706 277 275 4499 219 910 160 Thermal 4456 | 24 124 1798 2141 . 102 . . . 214 53 . . Explosive 1302 | . . 198 304 . . . . . 800 . . . Electromagnetic 2898 | . . 198 . . 488 . . . 813 722 677 . Impact . | . . . . . . . . . . . . . Slashing . | . . . . . . . . . . . . . Piercing . | . . . . . . . . . . . . . Entropic 570 | . . . . . . . . . . . . 570 Highest Corruption 24 | . . . . 1 3 3 . . 21 21 24 24 Average Corruption 9 | . . . . 1 1 3 . . 12 21 22 18 Corruption Purged . | . . . . . . . . . . . . . Corruption Blocked . | . . . . . . . . . . . . . Effects 209 | . . . . 5 14 22 . . 77 35 53 3 Message Errors 47 | . . . . . 2 6 . . 17 7 14 1 Matter Fused 42 | . . . . 1 2 7 . . 12 13 7 . Heat Flow Errors 23 | . . . . 1 2 1 . . 12 1 6 . Energy Discharges 24 | . . . . 2 2 3 . . 7 3 6 1 Parts Rejected 3 | . . . . 1 . . . . 2 . . . Parts Fused 1 | . . . . . 1 . . . . . . . Data Loss (minor) 24 | . . . . . 2 1 . . 12 3 6 . Data Loss (major) 8 | . . . . . . . . . 3 3 2 . Misfires 6 | . . . . . 1 1 . . . . 3 1 Alerts 5 | . . . . . 2 2 . . 1 . . . Misdirections 4 | . . . . . . . . . 2 . 2 . Weapon Failures 22 | . . . . . . 1 . . 9 5 7 . Overload Shots . | . . . . . . . . . . . . . Overflow Damage 444 | . 2 12 21 8 84 . 10 . 243 . 35 29 Projectiles 367 | . 2 . 9 8 59 . 10 . 228 . 22 29 Explosions 77 | . . 12 12 . 25 . . . 15 . 13 . Melee . | . . . . . . . . . . . . . Knockbacks 79 | . 1 . 9 7 13 . 3 . 41 . 5 . Impact . | . . . . . . . . . . . . . Kinetic 77 | . 1 . 9 7 12 . 3 . 40 . 5 . Secondary 2 | . . . . . 1 . . . 1 . . . Self-Inflicted Damage 276 | . . 94 . . 122 . . . . 15 45 . Shots 11 | . . 2 . . 2 . . . . 2 5 . Rammed . | . . . . . . . . . . . . . Targets Rammed . | . . . . . . . . . . . . . Kicked . | . . . . . . . . . . . . . Crushed . | . . . . . . . . . . . . . Highest Temperature 489 | 60 60 412 330 259 168 120 489 231 404 334 282 55 Average Temperature 83 | 30 22 87 83 37 38 20 249 101 112 64 101 22 Received Heat Transfer 3951 | . 36 268 990 261 795 210 . . 231 15 737 408 Effects 11 | . . 2 . . . . 2 . 7 . . . Shutdowns 5 | . . 2 . . . . 1 . 2 . . . Interference 1 | . . . . . . . . . 1 . . . Matter Decay 1 | . . . . . . . 1 . . . . . Short Circuit 2 | . . . . . . . . . 2 . . . Damage (major) 2 | . . . . . . . . . 2 . . . Siege Activations 9 | . . . . . . . . . 9 . . . Total Turns 115 | . . . . . . . . . 115 . . . Longest Duration 34 | . . . . . . . . . 34 . . . Martial Activations . | . . . . . . . . . . . . . Shielding Activations . | . . . . . . . . . . . . . Robots Disrupted 1 | . . . . . . . . . 1 . . . Combat Hostiles . | . . . . . . . . . . . . . Robots Corrupted 4 | . . . . . 1 . . . . 1 2 . Combat Hostiles 4 | . . . . . 1 . . . . 1 2 . Parts Fried 13 | . . . . . 4 . . . 5 3 1 . Impact Corruptions 1 | . . . . . . . . . 1 . . . Robots Melted 2 | . . . 2 . . . . . . . . . Combat Hostiles 2 | . . . 2 . . . . . . . . . Parts Melted 21 | 1 . 9 11 . . . . . . . . . Heat Transferred 9714 | 62 370 4714 4218 . 100 . . . 200 50 . . Parts Sabotaged 3 | . . . . . . . . . . . . 3 Parts Stolen . | . . . . . . . . . . . . . Parts Stripped . | . . . . . . . . . . . . . Power Chain Reactions 10 | . . 2 . . 2 . . . 4 2 . . Alert | -11 -10 -9 -8 -7 -7 -7 -5 -5 -5 -5 -5 -5 ------- Run | Yrd Mat Mat Mat Fac Sto Rec Fac Was Fac Upp Upp War Maximum Alert Level 3 | . . 1 2 1 1 . 1 . 3 . . . Low Security (%) 66 | 100 100 63 44 75 53 100 56 100 44 . . . Level 1 28 | . . 36 47 24 46 . 43 . 37 . . . Level 2 2 | . . . 8 . . . . . 9 . . . Level 3 1 | . . . . . . . . . 9 . . . Level 4 . | . . . . . . . . . . . . . Level 5 . | . . . . . . . . . . . . . High Security . | . . . . . . . . . . . . . Max Security . | . . . . . . . . . . . . . Peak Influence 887 | 5 61 298 465 255 392 149 246 65 887 . . . Initial 151 | . . . 118 151 80 149 100 65 . . . . Average 155 | . 20 150 225 135 204 27 165 13 269 . . . Influence Increases 6283 | 5 212 781 942 545 864 139 286 16 1433 320 305 435 Destroy 0b10 Robot/C 3460 | . 140 500 600 320 460 80 100 . 760 260 180 60 Destroy 0b10 Robot/NC 305 | 5 25 75 40 20 45 15 . . 80 . . . Destroy Leader 728 | . 34 126 134 74 156 . 10 . 144 30 20 . Successful Hack 158 | . 12 15 21 75 9 14 . . 12 . . . Select Force Hacks 30 | . . . . . . 30 . . . . . . Disable Machine 525 | . . 30 30 30 120 . 30 . 285 . . . Destroy Structure 332 | . 1 35 42 26 44 . 16 16 152 . . . Advance Influence 100 | . . . . . . . 100 . . . . . Partial Spotted 15 | . . . . . 15 . . . . . . . Lose Combat Pursuer 630 | . . . 75 . 15 . 30 . . 30 105 375 Influence Decreases 6056 | 5 212 498 891 701 658 523 100 202 552 643 631 440 Entered New Map 1468 | . . . 165 183 98 235 . 121 . 327 107 232 Time Decay 3884 | 5 212 478 486 508 490 264 100 81 492 286 404 78 Lost Part 554 | . . 20 90 10 70 24 . . 60 30 120 130 Purge Threat 150 | . . . 150 . . . . . . . . . Squads Dispatched 32 | . 2 2 3 8 9 . . . 7 . 1 . Investigation 12 | . 1 2 1 5 2 . . . 1 . . . Extermination 8 | . . . . 2 2 . . . 4 . . . Reinforcement 8 | . 1 . 2 1 3 . . . 1 . . . Assault 2 | . . . . . . . . . 1 . 1 . Garrison 2 | . . . . . 2 . . . . . . . Intercept . | . . . . . . . . . . . . . Searches Triggered . | . . . . . . . . . . . . . Construction Impeded 1 | . . . 1 . . . . . . . . . Haulers Reinforced 1 | . . . . . 1 . . . . . . . Active Scanning Responses . | . . . . . . . . . . . . . Cargo Convoy Interrupts . | . . . . . . . . . . . . . Stealth | -11 -10 -9 -8 -7 -7 -7 -5 -5 -5 -5 -5 -5 --------- Run | Yrd Mat Mat Mat Fac Sto Rec Fac Was Fac Upp Upp War Distress Signals 13 | . . 1 3 . 3 . . . 3 . . 3 Communications Jammed . | . . . . . . . . . . . . . Distress Signals . | . . . . . . . . . . . . . Times Spotted 264 | . 10 31 42 20 39 4 6 . 44 15 18 35 Peak Tracking Total 21 | . 4 5 6 3 4 2 5 . 6 5 9 21 Tactical Retreats 16 | . . . 3 . 1 . 1 . . 2 2 7 Traps | -11 -10 -9 -8 -7 -7 -7 -5 -5 -5 -5 -5 -5 ------- Run | Yrd Mat Mat Mat Fac Sto Rec Fac Was Fac Upp Upp War Traps Triggered 11 | . . 1 . 1 5 . 1 . 2 1 . . Indirectly 1 | . . . . . . . . . 1 . . . Trap Hack Attempts . | . . . . . . . . . . . . . Triggered . | . . . . . . . . . . . . . Disarmed . | . . . . . . . . . . . . . Reprogrammed . | . . . . . . . . . . . . . Reused . | . . . . . . . . . . . . . Traps Extracted . | . . . . . . . . . . . . . Installed . | . . . . . . . . . . . . . Triggered . | . . . . . . . . . . . . . Machines | -11 -10 -9 -8 -7 -7 -7 -5 -5 -5 -5 -5 -5 ---------- Run | Yrd Mat Mat Mat Fac Sto Rec Fac Was Fac Upp Upp War Machines Disabled 36 | . . 2 2 2 8 . 2 . 19 . 1 . Max in Single Turn 4 | . . 1 1 1 1 . 1 . 4 . 1 . Garrison Access 2 | . . . . 1 1 . . . . . . . Machines Repaired . | . . . . . . . . . . . . . Machines Dismantled . | . . . . . . . . . . . . . Machines Sabotaged . | . . . . . . . . . . . . . Overloaded Fab Kills . | . . . . . . . . . . . . . Hacking | -11 -10 -9 -8 -7 -7 -7 -5 -5 -5 -5 -5 -5 --------- Run | Yrd Mat Mat Mat Fac Sto Rec Fac Was Fac Upp Upp War Machines Accessed 60 | . 4 8 5 10 8 11 1 . 6 1 . 6 Terminals 29 | . 2 5 3 4 4 6 1 . 3 1 . . Fabricators 4 | . . . . 3 . . . . 1 . . . Repair Stations 5 | . . 2 . 1 2 . . . . . . . Recycling Units 11 | . 2 . 1 1 1 5 . . 1 . . . Scanalyzers 3 | . . 1 1 . . . . . 1 . . . Garrison Access 2 | . . . . 1 1 . . . . . . . Total Hacks 164 | . 13 36 21 24 23 22 2 . 11 2 . 10 Successful 90 | . 5 24 15 12 12 5 . . 5 2 . 10 Failed 73 | . 8 11 6 12 11 17 2 . 6 . . . Catastrophic 13 | . . 1 1 1 3 5 . . 2 . . . Database Lockouts 1 | . . 1 . . . . . . . . . . Manual 47 | . 6 8 4 2 8 13 2 . 4 . . . Terminals 72 | . 6 14 9 9 11 13 2 . 6 2 . . Fabricators 10 | . . . . 8 . . . . 2 . . . Repair Stations 26 | . . 16 . 2 8 . . . . . . . Recycling Units 28 | . 7 . 3 4 3 9 . . 2 . . . Scanalyzers 16 | . . 6 9 . . . . . 1 . . . Garrison Access 2 | . . . . 1 1 . . . . . . . Terminal Hacks 25 | . 1 3 2 3 2 1 . . 1 2 . 10 Record 10 | . . . . . . . . . . 2 . 8 Part Schematic 3 | . 1 1 . 1 . . . . . . . . Robot Analysis 1 | . . . . 1 . . . . . . . . Prototype ID Bank 1 | . . 1 . . . . . . . . . . Open Door 3 | . . . . . 1 . . . . . . 2 Branch Access Points 2 | . . . . 1 . . . . 1 . . . Terminal Index 1 | . . . . . . 1 . . . . . . Alert Level 3 | . . 1 1 . 1 . . . . . . . Unreport Threat 1 | . . . 1 . . . . . . . . . Fabricator Hacks 6 | . . . . 5 . . . . 1 . . . Network Status 2 | . . . . 1 . . . . 1 . . . Load Schematic 2 | . . . . 2 . . . . . . . . Build 2 | . . . . 2 . . . . . . . . Repair Station Hacks 20 | . . 14 . . 6 . . . . . . . Scan Component 10 | . . 7 . . 3 . . . . . . . Repair 10 | . . 7 . . 3 . . . . . . . Recycling Unit Hacks 13 | . 3 . 3 2 1 3 . . 1 . . . Process 2 | . . . 1 1 . . . . . . . . Report Inventory 7 | . 2 . 1 1 1 1 . . 1 . . . Retrieve Matter 1 | . . . 1 . . . . . . . . . Retrieve Components 3 | . 1 . . . . 2 . . . . . . Scanalyzer 14 | . . 6 8 . . . . . . . . . Insert Component 7 | . . 3 4 . . . . . . . . . Analyze 7 | . . 3 4 . . . . . . . . . Garrison Access Hacks 2 | . . . . 1 1 . . . . . . . Seal Access 2 | . . . . 1 1 . . . . . . . Unauthorized Hacks 10 | . 1 1 2 1 2 1 . . 2 . . . Terminals 8 | . 1 1 2 1 1 . . . 2 . . . Botnet 8 | . 1 1 2 1 1 . . . 2 . . . Fabricators . | . . . . . . . . . . . . . Repair Stations . | . . . . . . . . . . . . . Recycling Units 2 | . . . . . 1 1 . . . . . . Recyclers 1 | . . . . . 1 . . . . . . . Tunnel 1 | . . . . . . 1 . . . . . . Scanalyzers . | . . . . . . . . . . . . . Garrison Access . | . . . . . . . . . . . . . Data Cores Recovered 2 | . . . 1 1 . . . . . . . . Used 1 | . . . . 1 . . . . . . . . Hacking Detections 46 | . 4 8 5 9 6 8 1 . 5 . . . Full Trace Events 14 | . 1 2 2 5 2 1 . . 1 . . . Feedback Events . | . . . . . . . . . . . . . Feedback Blocked . | . . . . . . . . . . . . . Robot Schematics Acquired . | . . . . . . . . . . . . . Robots Built . | . . . . . . . . . . . . . Authchips . | . . . . . . . . . . . . . Time . | . . . . . . . . . . . . . Total Robot Build Rating . | . . . . . . . . . . . . . Part Schematics Acquired 10 | . 1 4 4 1 . . . . . . . . Parts Built 4 | . . . . 4 . . . . . . . . Authchips . | . . . . . . . . . . . . . Time 84 | . . . . 84 . . . . . . . . Total Part Build Rating 16 | . . . . 16 . . . . . . . . Parts Repaired 10 | . . 7 . . 3 . . . . . . . Time 363 | . . 249 . . 114 . . . . . . . Parts Recycled . | . . . . . . . . . . . . . Recycled Matter 586 | . . . 226 360 . . . . . . . . Retrieved Matter 226 | . . . 226 . . . . . . . . . Retrieved Components 14 | . 3 . . . . 11 . . . . . . Parts Scanalyzed 7 | . . 3 4 . . . . . . . . . Part Schematics Acquired 7 | . . 3 4 . . . . . . . . . Parts Damaged 1 | . . . 1 . . . . . . . . . Bothacking | -11 -10 -9 -8 -7 -7 -7 -5 -5 -5 -5 -5 -5 ------------ Run | Yrd Mat Mat Mat Fac Sto Rec Fac Was Fac Upp Upp War Used RIF Installer . | . . . . . . . . . . . . . Robots Hacked . | . . . . . . . . . . . . . Non-combat . | . . . . . . . . . . . . . Combat . | . . . . . . . . . . . . . Robot Hacks Applied . | . . . . . . . . . . . . . Relay Couplers Released . | . . . . . . . . . . . . . Fabnet Peak Effective % . | . . . . . . . . . . . . . Robots Rewired . | . . . . . . . . . . . . . Allies Hacked . | . . . . . . . . . . . . . Hacks Repelled . | . . . . . . . . . . . . . Allies | -11 -10 -9 -8 -7 -7 -7 -5 -5 -5 -5 -5 -5 -------- Run | Yrd Mat Mat Mat Fac Sto Rec Fac Was Fac Upp Upp War Total Allies . | . . . . . . . . . . . . . Largest Group . | . . . . . . . . . . . . . Highest-Rated Group . | . . . . . . . . . . . . . Highest-Rated Ally . | . . . . . . . . . . . . . Total Orders . | . . . . . . . . . . . . . Ally Attacks . | . . . . . . . . . . . . . Total Damage . | . . . . . . . . . . . . . Kills . | . . . . . . . . . . . . . Allies Corrupted . | . . . . . . . . . . . . . Allies Melted 3 | . . . . . . . . . . . . 3 Intel | -11 -10 -9 -8 -7 -7 -7 -5 -5 -5 -5 -5 -5 ------- Run | Yrd Mat Mat Mat Fac Sto Rec Fac Was Fac Upp Upp War Active Infowar (turns) 9367 | 42 678 1463 395 1129 309 . 202 418 2034 630 979 1088 Terrain 1624 | . . . . . . . . . 98 477 962 87 Structural 2579 | . . . . 184 112 . 202 15 1788 9 269 . Seismic 5439 | 42 678 1463 395 945 197 . . 403 870 164 282 . Decoding 1001 | . . . . . . . . . . . . 1001 Robot Analysis Total 1 | . . . . 1 . . . . . . . . Derelict Logs Recovered 2 | . . . . . . . . . . 1 1 . Drone Launches . | . . . . . . . . . . . . . Drone Recoveries . | . . . . . . . . . . . . . Exploration | -11 -10 -9 -8 -7 -7 -7 -5 -5 -5 -5 -5 -5 ------------- Run | Yrd Mat Mat Mat Fac Sto Rec Fac Was Fac Upp Upp War Turns Passed 13143 | 117 678 1463 1263 1524 1296 1344 205 473 2050 630 979 1121 Spaces Moved 6767 | 61 363 439 528 894 537 756 113 269 991 492 455 869 Core 14 | 5 . . . . . . . . . . . 9 Treads 1571 | 56 363 77 . . . . . 197 870 . . 8 Legs 2925 | . . 362 441 794 537 756 . 2 . . 30 3 Wheels 2257 | . . . 87 100 . . 113 70 121 492 425 849 Hover . | . . . . . . . . . . . . . Flight . | . . . . . . . . . . . . . Fastest Speed 50 | 50 160 160 120 122 125 125 130 130 105 105 100 50 Average Speed 139 | 150 160 184 134 130 127 166 130 154 156 109 119 112 Slowest Speed 340 | 160 160 190 190 190 128 195 130 340 185 120 190 260 Overloaded Moves . | . . . . . . . . . . . . . Propulsion Burnouts . | . . . . . . . . . . . . . Robots Hopped . | . . . . . . . . . . . . . Potential Cave-ins . | . . . . . . . . . . . . . Cave-ins Triggered 1 | . . . . . . . . . 1 . . . Exploration Rate (%) 55 | 5 61 52 49 18 79 94 3 97 24 77 65 91 Regions Visited 12 Branch Regions 5 Pre-discovered Areas 2 | . . . . . . 1 . . . . . 1 Known Exits Taken 2 | . . . . 1 . . . . 1 . . . Unknown Exits Taken 8 | 1 1 1 1 . 1 1 . . . 1 1 . Scrap Searched 5 | . . . . . . . . . . 4 1 . Spaces Dug 15 | . . . . 5 5 . . 4 1 . . . Terrain Destroyed 279 | . . 32 58 22 40 . 10 9 78 8 10 12 Melee 2 | . . . . . 1 . . . 1 . . . Projectile 152 | . . . 13 22 25 . 10 9 43 8 10 12 AOE 125 | . . 32 45 . 14 . . . 34 . . . Terrain Rammed . | . . . . . . . . . . . . . Walls Destroyed . | . . . . . . . . . . . . . Machines Disabled . | . . . . . . . . . . . . . Actions | -11 -10 -9 -8 -7 -7 -7 -5 -5 -5 -5 -5 -5 --------- Run | Yrd Mat Mat Mat Fac Sto Rec Fac Was Fac Upp Upp War Total 9374 | 79 428 927 866 1167 970 802 153 315 1295 550 826 996 Wait 1503 | 4 33 344 156 154 251 20 5 3 133 8 321 71 Move 6756 | 60 362 438 527 893 536 755 113 268 990 491 454 869 Hop . | . . . . . . . . . . . . . Pick Up 140 | 6 10 15 17 11 21 4 10 8 15 10 6 7 Fast Attach 80 | 7 1 11 8 8 17 . . 5 9 4 2 8 Attach 52 | . . 5 7 4 7 1 6 1 5 2 8 6 Detach 27 | . . 5 1 5 7 . 1 . 2 1 . 5 Swap 119 | . 1 8 19 26 16 . 4 6 26 8 3 2 Drop 140 | . 4 17 20 20 19 3 5 16 18 6 . 12 Fire 550 | 2 17 84 111 46 90 19 9 8 96 20 32 16 Melee 3 | . . . . . 2 . . . 1 . . . Ram . | . . . . . . . . . . . . . Kick . | . . . . . . . . . . . . . Crush . | . . . . . . . . . . . . . Escape Stasis 4 | . . . . . 4 . . . . . . . Rewire . | . . . . . . . . . . . . . Trap . | . . . . . . . . . . . . . Miscellaneous . | . . . . . . . . . . . . . Route ------- -11/Scrapyard -10/Materials (discovered 2 exits: *Mat x2) -9/Materials (discovered 2 exits: *Mat / [*Min]) -8/Materials -7/Factory (discovered 5 exits: [*Fac] / *Sto x2 / Low x2) -7/Storage (discovered 2 exits: [*Fac] / *Rec) -7/Recycling -5/Factory -5/Waste -5/Factory (discovered 5 exits: [*Fac] / *Upp x2 / Ext x2) -5/Upper Caves -5/Upper Caves (discovered 2 exits: [*Fac] / *War) -5/Warlord (discovered 1 exit: [*Pro]) History --------- Turn | Location | Event 23 | -11/Scrapyard | Discovered new exit (range 16) 118 | -11/Scrapyard | Entered Materials 298 | -10/Materials | Discovered new exit (range 12) 314 | -10/Materials | Build established: Mutant 618 | -10/Materials | Derelicts attacked the area 748 | -10/Materials | Discovered new exit (range 6) 796 | -10/Materials | Entered another Materials area 796 | -9/Materials | Evolved 2 slots: Utility x2 1471 | -9/Materials | Central database locked down 1635 | -9/Materials | Core integrity fell below 50% 1763 | -9/Materials | Discovered new exit (range 13) 1883 | -9/Materials | Repaired Imp. Aluminum Leg 1936 | -9/Materials | Repaired Imp. Medium Laser 1969 | -9/Materials | Repaired Imp. Aluminum Leg 2026 | -9/Materials | Repaired Lgt. Nuclear Core 2066 | -9/Materials | Repaired Imp. Heat Sink 2093 | -9/Materials | Repaired Lgt. Cannon 2125 | -9/Materials | Repaired Imp. Aluminum Leg 2175 | -9/Materials | Discovered new exit (range 16) 2259 | -9/Materials | Entered another Materials area 2259 | -8/Materials | Evolved 2 slots: Propulsion x2 2859 | -8/Materials | Lost 3 parts (1p2n) 3083 | -8/Materials | Core integrity fell below 50% 3110 | -8/Materials | Discovered new exit (range 13) 3377 | -8/Materials | Build established: Scavenger-Mutant 3522 | -8/Materials | Entered Factory 3522 | -7/Factory | Evolved 2 slots: Propulsion x1, Utility x1 3808 | -7/Factory | Identified exit to Storage 3808 | -7/Factory | Identified exit to Lower Caves 3949 | -7/Factory | Build established: Mutant 4275 | -7/Factory | Build established: Scavenger-Mutant 4298 | -7/Factory | Fabricated Imp. Titanium Leg? 4429 | -7/Factory | Fabricated Imp. Titanium Leg? 4900 | -7/Factory | Build established: Machinist-Mutant 4941 | -7/Factory | Discovered new exit (range 12) 5046 | -7/Factory | Entered Storage 5073 | -7/Storage | Garrison activated, responded to threat 5211 | -7/Storage | Met 01-MTF 5317 | -7/Storage | Garrison activated, responded to threat 5389 | -7/Storage | Repaired Lrg. Storage Unit 5469 | -7/Storage | Repaired Imp. Titanium Leg 5514 | -7/Storage | Repaired Imp. Titanium Leg 5926 | -7/Storage | Discovered new exit (range 13) 6170 | -7/Storage | Lost 3 parts (2n1u) 6336 | -7/Storage | Used back door to open Recycling access 6336 | -7/Storage | Discovered new exit (range 5) 6342 | -7/Storage | Entered Recycling 6420 | -7/Recycling | Build established: Mutant 6824 | -7/Recycling | Lost 4 parts (3n1u) 6859 | -7/Recycling | Discovered new exit (range 12) 7686 | -7/Recycling | Entered Factory 7686 | -5/Factory | Evolved 4 slots: Power x1, Utility x2, Weapon x1 7891 | -5/Factory | Sucked down chute 7891 | -5/Factory | Entered Waste 7891 | -5/Waste | The area was eerily silent 7907 | -5/Waste | Found Prototype Device 7907 | -5/Waste | Identified Adv. Kinecellerator 8210 | -5/Waste | Discovered new exit (range 12) 8255 | -5/Waste | Build established: Tank 8364 | -5/Waste | Entered Factory 8674 | -5/Factory | Identified exit to Upper Caves 8674 | -5/Factory | Identified exit to Extension 8812 | -5/Factory | Crushed by falling debris 8869 | -5/Factory | Discovered new exit (range 15) 9216 | -5/Factory | System corruption reached 10% 9342 | -5/Factory | Spotted B-75 Beast 9524 | -5/Factory | Build established: Scavenger-Tank 10164 | -5/Factory | First assault squad dispatched 10414 | -5/Factory | Entered Upper Caves 10590 | -5/Upper Caves | Learned location of 1 exit from Proximity Caves 10941 | -5/Upper Caves | Attracted the attention of an 0b10 checkpoint 11028 | -5/Upper Caves | Discovered new exit (range 14) 11044 | -5/Upper Caves | Entered another Upper Caves area 11083 | -5/Upper Caves | Lost 3 parts (1n2u) 11193 | -5/Upper Caves | Discovered new exit (range 8) 11316 | -5/Upper Caves | Attracted the attention of an 0b10 outpost 11347 | -5/Upper Caves | Build established: Gunner 11370 | -5/Upper Caves | Lost 4 parts (1n2u1w) 11388 | -5/Upper Caves | Core integrity fell below 50% 11440 | -5/Upper Caves | Lost 5 parts (2p1n1u1w) 11775 | -5/Upper Caves | Build established: Scavenger-Gunner 11965 | -5/Upper Caves | Discovered new exit (range 12) 11994 | -5/Upper Caves | Learned location of 1 exit from Proximity Caves 12023 | -5/Upper Caves | Entered Warlord 12058 | -5/Warlord | System corruption cleaned by Quarantine Array 12330 | -5/Warlord | Visited the Vortex Lab 12344 | -5/Warlord | Found Prototype Energy Cannon 12344 | -5/Warlord | Identified Vortex Cannon 12345 | -5/Warlord | Warlord's base attacked by MAIN.C 12562 | -5/Warlord | Learned Factory scanalyzer intel 12562 | -5/Warlord | Learned Research terminal intel 12562 | -5/Warlord | Learned Research repair station intel 12562 | -5/Warlord | Learned Research garrison access intel 12562 | -5/Warlord | Learned 4 Armory zone layouts 12695 | -5/Warlord | Warlord forces counterattacked 12757 | -5/Warlord | Met Warlord 13000 | -5/Warlord | Opened side exit 13020 | -5/Warlord | Warlord base infiltrated, sounded retreat 13047 | -5/Warlord | Spotted Striker 13047 | -5/Warlord | Spotted Striker 13047 | -5/Warlord | Spotted Executioner 13127 | -5/Warlord | Core integrity fell below 20% 13142 | -5/Warlord | Discovered new exit (range 12) 13144 | -5/Warlord | Destroyed by Striker with Plasma Lance Last Messages --------------- (+10). 13123_ KE Penetrator destroyed. 13125_ Flexi-carbon Leg destroyed. 13126_ System corrupted: FCS attempts to trigger Vortex Cannon. 13126_ System corrupted: Vortex Cannon misfires. 13126_ G-50 Soldier destroyed. 13126_ Mak. Light Armor Plating destroyed. 13130_ Vortex Cannon destroyed. 13135_ ANNOUNCEMENT: MAIN.C reinforcements approaching through caves, arriving soon. 13135_ Penetrated by Slug. 13136_ Mak. Light Armor Plating destroyed. 13136_ Critical hit (Burn: +37). 13137_ G-67 Veteran IFF system glitched. 13138_ Penetrated by Slug. 13139_ Dropped 0b10 Decoder Chip [Scout]. 13139_ Dropped Med. Storage Unit. 13142_ EXIT=FOUND 13144_ Critical hit (Impale). Map ----- +----------------------------------------------------+ | | | | | | | ?????????????????????????????????? | | ?????????????????????????????????? | | ?????????????????????????????????? | | ?????????????????????????????????? | | ?????????????????????????????????? | | ?????????????????????????????????? | | ?????????????????????????????????? | | ?????????????????????????????????? | | ?????????????????????????????????? | | ?????????????????????????????????? | | ?????????????????????????????????? | | ?????????????????????????????????? | | ?????????????????????????####????? | | #??????????????????????## ###??? | | ??????????????????????## ##?? | | ?????????????????????## < #?? | | ?????????????????????# ??? | | ?????????????????????# ???? | | ?????????????????????? #???? | | ????????????# ???????? #???? | | ?????????????# ????????# #????? | | ??????????????# ??##?### #?????? | | ??????????????# ##"## @ ###???? | | ????????????#?# K ##??? | | ??????????????## ##; ### ##? | | ???????????????## ##?? #? | | ????????????????### ##??? #? | | ??????????????????# ##??? ##? | | #?????????????#???## "##?? ##? | | #??????????????????## "#? ;#? | | #####??????????????##" "##" #? | | "############????#""!! "#? | | !!%""""""""""""#???## " "##? | | %%%="""""!""[""#?#### ! ! " | | [!%% =%//%! "## #" [% " | | [%*/% !%=%=!%%+ % # | | |%%=% *=*%=!=%% ### | | [%%%= =%!=/%[#### % ## #? | | [=%%"""""!!%!""#?##" #?# #? | | ! """"""""""""#?# " #?#" ! #? | | ! "############?##"/ #"#" # | | #####???????#????##"!%### # | | #????????????????#" !### "## | | #????????????????# [%### "##? | | #???????????????##!%##?# "#?# | | ????????????????# =#??## ##?? | | ????????????#?? " #???## # ??? | +----------------------------------------------------+ Best States ------------- Heat Dissipation 78 Energy Generation 35 Energy Capacity 540 Matter Stores 500 Matter Capacity 500 Sight Range 16 Terrain Scan Range 20 Terrain Scan Density 10 Armor Coverage 1500 Resistance: KI 20 Core Shielding 20 Evasion (%) 58 Targeting Accuracy 16 Target Analysis 6 Recoil Reduction 4 Kinecelleration 30 Offensive Hacking 14 Authchip Count 1 Item Schematics ----------------- Structural Scanner | -10/Materials | Hacked Hcp. Matter Pod | -9/Materials | Scanalyzed Wheel | -9/Materials | Scanalyzed Datajack | -9/Materials | Scanalyzed Seismic Detector | -9/Materials | Hacked Hacking Suite | -8/Materials | Scanalyzed Hcp. Storage Unit | -8/Materials | Scanalyzed Adv. Beam Cannon | -8/Materials | Scanalyzed Lgt. Nuclear Core | -8/Materials | Scanalyzed Imp. Titanium Leg | -7/Factory | Hacked Robot Schematics ------------------ None Fabricated ------------ Imp. Titanium Leg | x2 | -7/Factory Imp. Titanium Leg | x2 | -7/Factory Repaired ---------- Imp. Aluminum Leg | 37% | -9/Materials Imp. Medium Laser | 5% | -9/Materials Imp. Aluminum Leg | 41% | -9/Materials Lgt. Nuclear Core | 34% | -9/Materials Imp. Heat Sink | 42% | -9/Materials Lgt. Cannon | 42% | -9/Materials Imp. Aluminum Leg | 70% | -9/Materials Lrg. Storage Unit | 38% | -7/Storage Imp. Titanium Leg | 27% | -7/Storage Imp. Titanium Leg | 70% | -7/Storage Alien Tech Used ----------------- None Achievements -------------- None Challenges ------------ None Game ------ Seed MomentumCombatSegregator Manual? 0 Play Time 02:24:12 Cumulative 89.1 hours Start 2025.07.31 @ 21:00:11 End 2025.08.04 @ 16:01:05 Sessions 5 Manual Loads 0 Difficulty Rogue Special Mode None Game No. 60 Rogue 60 Adventurer 0 Explorer 0 Win Type - Total 1 Types 1/0/0/0/0/0/0/0/0/0 Lore% 56 Gallery% 49 Achievement% 43 Wizard Run 0 Options --------- Layout 1 ASCII 0 Keyboard 1 Movement Numpad Keybinds 0 Fullscreen 1 Font 24/Smallcaps Map View 50x35 Zoom Use 0% Tactical HUD 1 Map Filters NONE Filters NONE Steam 1 RUN: 3ee7d994-8219-407a-b2bf-8e4ed987ab60